bitfinex/quotes_ETHUSD_20241106
["timestamp","ask_amount","ask_price","bid_price","bid_amount"]
[1730907875766,3.78252,2643.8,2643.2,14.30902]
[1730907876188,3.78282,2643.6,2643.2,13.0082]
[1730907876602,3.78293,2643.5,2643.2,13.0082]
[1730907876784,3.78293,2643.5,2643.2,0.8282]
[1730907877794,3.78272,2643.6,2643.2,0.8282]
[1730907878364,3.78259,2643.7,2643.2,0.8282]
[1730907878365,3.78235,2643.9,2643.2,0.8282]
[1730907878595,3.78178,2644.3,2643.2,0.8282]
[1730907878596,3.78217,2644.0,2643.2,0.8282]
[1730907878804,3.78254,2643.8,2643.2,0.8282]
[1730907879008,3.78225,2644.0,2643.2,0.8282]
[1730907879707,3.78224,2644.0,2643.3,0.8261]
[1730907879913,3.78224,2644.0,2643.4,1.30061]
[1730907879914,7.56448,2644.0,2643.4,1.30061]
[1730907880126,3.78255,2643.8,2643.3,0.8261]
[1730907880620,3.78254,2643.8,2643.3,0.8261]
[1730907880973,7.56447,2644.0,2643.3,0.8261]
[1730907881228,3.78229,2643.9,2643.3,0.8261]
[1730907881592,3.78182,2644.3,2643.3,0.8261]
[1730907881787,3.78182,2644.3,2643.5,0.7941]
[1730907881988,1.51864728,2644.6,2643.5,3.86975068]
[1730907881989,0.041201,2643.6,2643.5,3.86975068]
[1730907882190,0.041201,2643.6,2643.5,16.04974891]
[1730907882393,0.041201,2643.6,2643.5,18.00754766]
[1730907882606,3.78095,2644.9,2643.8,0.7941]
[1730907882827,3.78045,2645.2,2643.5,17.22344766]
[1730907882828,0.7871,2644.6,2643.5,0.8029]
[1730907883110,3.7823,2643.9,2643.5,0.8029]
[1730907883317,3.78187,2644.2,2643.5,0.8029]
[1730907883916,3.78177,2644.3,2643.5,0.8029]
[1730907884084,3.78138,2644.6,2643.8,0.7898]
[1730907884278,3.78145,2644.5,2643.8,14.57434482]
[1730907884515,0.8304,2644.9,2643.8,12.9698]
[1730907884823,3.78215,2644.0,2643.4,0.8195]
[1730907885017,3.78186,2644.2,2643.4,0.8195]
[1730907885321,3.78252,2643.8,2643.4,0.8195]
[1730907885509,7.56508,2643.8,2643.4,0.8195]
[1730907885817,3.78267,2643.7,2643.4,0.8195]
[1730907886125,3.7828,2643.6,2643.4,0.8195]
[1730907886328,3.78267,2643.7,2643.4,0.8195]
[1730907886628,3.78237,2643.9,2643.4,0.8195]
[1730907886787,3.78159,2644.4,2643.5,0.7776]
[1730907886990,0.8106,2644.8,2643.4,12.18]
[1730907886991,3.78138,2644.6,2643.7,0.7776]
[1730907887499,4.59168,2644.8,2643.5,3.0]
[1730907887500,3.78108,2644.8,2643.8,0.07564034]
[1730907887683,3.78108,2644.8,2643.9,0.7948]
[1730907887888,3.78108,2644.8,2644.1,0.7948]
[1730907889405,3.78073,2645.0,2644.1,0.7948]
[1730907890041,3.7817,2644.4,2644.1,0.7948]
[1730907890200,3.78179,2644.3,2643.2,0.8064]
[1730907890402,3.7817,2644.4,2643.2,0.8064]
[1730907890705,7.5634,2644.4,2643.2,0.8064]
[1730907890903,3.7817,2644.4,2643.4,0.8064]
[1730907891103,3.78182,2644.3,2643.4,0.8064]
[1730907891300,3.78107,2644.8,2643.7,0.7646]
[1730907891649,7.56218,2644.8,2643.9,0.7646]
[1730907891851,3.78107,2644.8,2644.0,0.37646]
[1730907892147,3.78115,2644.7,2644.0,0.37646]
[1730907892296,3.78115,2644.7,2643.9,0.7646]
[1730907892738,3.78131,2644.6,2643.9,0.7646]
[1730907893149,3.78118,2644.7,2643.9,0.7646]
[1730907893643,3.78129,2644.6,2643.9,0.7646]
[1730907893849,0.8239,2645.2,2643.9,0.7646]
[1730907893850,3.78158,2644.4,2643.9,0.7646]
[1730907894055,7.56323,2644.4,2643.9,0.7646]
[1730907894225,3.78158,2644.4,2643.9,0.7646]
[1730907895605,3.78172,2644.3,2643.9,0.7646]
[1730907895807,3.78158,2644.4,2643.9,0.7646]
[1730907896051,3.78171,2644.3,2643.9,0.7646]
[1730907896262,3.78191,2644.2,2643.6,13.0114]
[1730907896428,3.78237,2643.9,2643.6,0.8314]
[1730907896787,3.78269,2643.7,2643.1,0.8314]
[1730907897067,4.160959,2643.7,2643.1,0.8314]
[1730907897257,3.78264,2643.7,2643.1,0.8314]
[1730907897612,7.56529,2643.7,2643.1,0.8314]
[1730907898242,3.78279,2643.6,2643.1,0.8314]
[1730907898442,3.7829,2643.5,2643.1,0.8314]
[1730907898815,0.37829,2643.5,2642.9,0.7662]
[1730907899019,3.78172,2644.3,2643.1,4.28472765]
[1730907899214,3.78207,2644.1,2643.3,0.7662]
[1730907899417,3.78238,2643.9,2643.3,0.7662]
[1730907899923,3.78211,2644.1,2643.3,0.7662]
[1730907900261,3.78211,2644.1,2643.2,12.18]
[1730907900262,3.78174,2644.3,2643.5,0.7788]
[1730907900627,7.56308,2644.5,2643.6,12.18]
[1730907900958,7.56308,2644.5,2643.7,1.29588]
[1730907901183,0.814,2644.6,2643.8,12.18]
[1730907901328,3.7811,2644.8,2643.9,0.7788]
[1730907901528,3.78094,2644.9,2644.0,12.18]
[1730907901727,3.78094,2644.9,2644.1,0.7855]
[1730907901960,3.78108,2644.8,2644.1,0.7855]
[1730907902159,3.78114,2644.7,2644.1,0.7855]
[1730907902564,7.940318,2644.8,2644.1,0.7855]
[1730907902772,11.72150519,2645.2,2644.1,12.9655]
[1730907902773,15.50206519,2645.2,2644.1,12.9655]
[1730907902994,3.61,2645.3,2643.9,4.28472765]
[1730907902995,3.61,2645.3,2644.3,0.8003]
[1730907903260,3.33,2645.7,2644.7,3.0]
[1730907903475,3.33,2645.7,2644.8,0.7835]
[1730907903669,3.33,2645.7,2644.9,0.07560849]
[1730907903829,3.33,2645.7,2645.1,0.7835]
[1730907904028,3.77915,2646.1,2645.1,0.7835]
[1730907904247,3.77875,2646.4,2645.3,0.7835]
[1730907904460,0.8024,2646.5,2645.3,0.7835]
[1730907904637,3.77907,2646.2,2645.3,0.7835]
[1730907904839,0.377907,2646.1,2645.3,0.7835]
[1730907905039,3.77879,2646.4,2645.3,0.7835]
[1730907905272,3.77908,2646.2,2645.3,0.7835]
[1730907905452,3.77944,2645.9,2645.3,0.7835]
[1730907905657,3.78004,2645.5,2644.5,0.8158]
[1730907906230,3.0,2645.6,2644.5,0.8158]
[1730907906435,3.78087,2644.9,2644.5,0.8158]
[1730907907778,7.56181,2644.9,2644.5,0.8158]
[1730907907928,0.8251,2645.1,2643.5,0.7514]
[1730907908132,0.55,2644.3,2643.5,0.7514]
[1730907908481,0.55,2644.3,2642.8,12.18]
[1730907908482,3.7825,2643.8,2642.8,12.18]
[1730907908683,3.78282,2643.6,2642.8,0.50756077]
[1730907908894,3.78231,2643.9,2643.0,0.8214]
[1730907909689,3.78266,2643.7,2643.0,0.8214]
[1730907909997,3.78207,2644.1,2643.1,0.07566877]
[1730907910164,3.78207,2644.1,2643.2,0.8123]
[1730907910364,3.78179,2644.3,2643.2,0.8123]
[1730907910568,0.55,2644.2,2643.4,0.8123]
[1730907910887,0.8068,2644.7,2643.4,0.8123]
[1730907910888,3.78067,2645.1,2644.1,0.8123]
[1730907911090,3.78034,2645.3,2644.3,0.8123]
[1730907911452,3.78034,2645.3,2644.2,0.50970276]
[1730907911453,4.87542352,2645.5,2644.5,0.8123]
[1730907911654,3.78005,2645.5,2644.5,0.8123]
[1730907911876,3.77975,2645.7,2644.6,0.0756219]
[1730907912189,4.59088,2646.1,2644.8,0.7681]
[1730907912439,4.59088,2646.1,2644.6,4.36034955]
[1730907912440,1.53115152,2646.1,2645.1,0.7681]
[1730907912571,1.53115152,2646.1,2645.2,0.84369959]
[1730907912767,3.77915,2646.1,2645.2,0.7681]
[1730907913091,3.77914,2646.1,2645.2,0.7681]
[1730907913694,7.55839,2646.1,2645.2,0.7681]
[1730907913867,3.77914,2646.1,2645.2,0.7681]
[1730907914068,7.5584,2646.1,2645.2,0.7681]
[1730907914265,3.61,2646.2,2645.2,0.7681]
[1730907914468,3.77994,2645.6,2645.2,0.7681]
[1730907914784,0.55,2646.0,2645.2,0.7681]
[1730907915004,4.32937,2646.0,2645.2,0.7681]
[1730907915575,3.7796,2645.8,2645.2,0.7681]
[1730907915802,4.590537,2645.8,2645.2,0.7681]
[1730907916119,3.78002,2645.5,2645.2,0.7681]
[1730907916426,0.810897,2645.8,2645.2,0.7681]
[1730907916609,12.14445661,2646.6,2645.2,0.7681]
[1730907916610,7.11063519,2646.6,2645.2,0.7681]
[1730907916795,7.55645,2646.8,2645.5,0.753]
[1730907916796,3.77818,2646.8,2645.5,0.753]
[1730907917001,3.33,2646.9,2645.8,5.77682142]
[1730907917295,14.49806519,2647.3,2646.0,0.753]
[1730907917493,1.82754052,2647.3,2646.4,0.8063]
[1730907917701,3.77734,2647.4,2646.4,0.8063]
[1730907918276,3.33,2647.8,2646.4,0.8063]
[1730907918478,3.77781,2647.1,2646.4,0.8063]
[1730907919197,0.01,2647.5,2646.4,0.8063]
[1730907919395,0.01,2647.5,2645.3,0.05670741]
[1730907919396,3.77857,2646.5,2645.3,0.05670741]
[1730907919722,7.55698,2646.6,2645.4,0.8176]
[1730907919906,3.77863,2646.5,2645.4,0.8176]
[1730907920124,3.77845,2646.6,2645.6,0.8176]
[1730907920345,1.305677,2646.6,2645.6,0.8176]
[1730907920721,3.77842,2646.7,2645.6,0.8176]
[1730907921216,7.55684,2646.7,2645.6,0.8176]
[1730907921409,3.77867,2646.5,2645.6,0.8176]
[1730907922201,3.7778,2647.1,2645.7,0.07558409]
[1730907922403,3.77722,2647.5,2646.0,0.755]
[1730907922708,3.77692,2647.7,2646.4,0.755]
[1730907922908,3.77692,2647.7,2646.3,3.0]
[1730907922909,3.77709,2647.6,2646.7,0.755]
[1730907923206,3.77729,2647.4,2646.7,0.755]
[1730907923406,7.55445,2647.5,2646.7,0.755]
[1730907923723,3.77719,2647.5,2646.8,0.3755]
[1730907923915,3.77738,2647.4,2646.8,0.3755]
[1730907924120,3.77744,2647.3,2646.7,0.755]
[1730907924439,3.77759,2647.2,2646.7,0.755]
[1730907924640,7.55496,2647.3,2646.7,0.755]
[1730907924950,3.77744,2647.3,2646.7,0.755]
[1730907925134,3.7776,2647.2,2646.7,0.755]
[1730907925445,3.33,2647.8,2646.7,2.08605]
[1730907925605,3.77726,2647.5,2646.7,2.08605]
[1730907925807,3.77745,2647.3,2646.7,2.08605]
[1730907926001,3.33,2647.8,2646.9,0.7962]
[1730907926251,10.72063519,2648.2,2647.0,0.7962]
[1730907926252,3.7763,2648.1,2647.0,0.7962]
[1730907926411,3.77672,2647.8,2647.2,0.7962]
[1730907926607,5.60382652,2648.0,2647.2,0.7962]
[1730907926807,3.77659,2647.9,2647.2,0.7962]
[1730907927147,1.82731652,2648.0,2647.2,0.7962]
[1730907927345,3.77693,2647.7,2647.2,0.7962]
[1730907927610,3.77703,2647.6,2647.2,0.7962]
[1730907927756,3.7773,2647.4,2646.9,0.8236]
[1730907928050,7.55416,2647.6,2646.9,0.8236]
[1730907928257,0.55,2647.6,2646.9,0.8236]
[1730907928427,3.77723,2647.5,2646.9,0.8236]
[1730907928634,3.77743,2647.3,2646.9,0.8236]
[1730907929259,3.77779,2647.1,2646.1,0.8236]
[1730907929419,3.77787,2647.0,2646.2,0.7996]
[1730907929830,3.77779,2647.1,2646.2,0.7996]
[1730907930129,3.77751,2647.3,2646.4,0.7996]
[1730907930322,0.55,2647.6,2646.5,0.07556423]
[1730907930516,3.77717,2647.5,2646.4,0.7969]
[1730907930717,3.7778,2647.1,2646.4,0.7969]
[1730907931115,3.77822,2646.8,2646.4,0.7969]
[1730907931334,3.77846,2646.6,2646.4,0.7969]
[1730907931534,3.77822,2646.8,2646.4,0.7969]
[1730907931843,3.77874,2646.4,2646.0,0.8191]
[1730907932240,3.77852,2646.6,2646.0,0.8191]
[1730907932445,3.77829,2646.7,2646.0,0.8191]
[1730907932629,0.55,2646.8,2646.0,0.8191]
[1730907932830,0.982802,2646.8,2646.0,0.8191]
[1730907933036,3.77838,2646.7,2646.0,0.8191]
[1730907933231,3.77837,2646.7,2646.0,0.8191]
[1730907933478,7.55679,2646.7,2646.0,0.8191]
[1730907933842,0.982802,2646.8,2646.0,0.8191]
[1730907934049,0.55,2646.8,2646.0,0.8191]
[1730907934268,3.77899,2646.3,2646.0,0.8191]
[1730907934575,7.55733,2646.5,2646.0,0.8191]
[1730907935109,3.77874,2646.4,2646.0,0.8191]
[1730907935280,0.55,2646.9,2646.0,0.8191]
[1730907935281,3.77838,2646.7,2646.0,0.8191]
[1730907935981,7.5568,2646.7,2646.0,0.8191]
[1730907936277,3.77838,2646.7,2646.0,0.8191]
[1730907936432,0.9823,2646.9,2646.0,0.8191]
[1730907936633,3.7785,2646.6,2646.0,0.8191]
[1730907936875,3.77858,2646.5,2646.0,0.8191]
[1730907937071,7.55723,2646.5,2646.0,0.8191]
[1730907937275,3.77879,2646.4,2646.0,0.8191]
[1730907937634,3.77858,2646.5,2646.0,0.8191]
[1730907937849,0.55,2646.6,2646.0,0.8191]
[1730907938055,3.77771,2647.1,2646.0,0.8191]
[1730907938277,14.49830519,2647.2,2645.5,3.01]
[1730907938278,3.77767,2647.2,2646.3,0.7726]
[1730907938444,0.7858,2647.6,2646.5,0.7647]
[1730907938638,4.56282,2647.6,2646.5,0.7647]
[1730907938865,3.77843,2646.6,2646.5,0.7647]
[1730907939071,0.7626,2647.5,2646.5,0.7647]
[1730907939349,3.77743,2647.3,2646.5,0.7647]
[1730907939950,3.77729,2647.4,2646.5,0.7647]
[1730907940295,3.77686,2647.7,2646.6,12.9447]
[1730907940462,3.77814,2646.8,2646.7,12.18]
[1730907940664,3.77814,2646.8,2646.6,0.7647]
[1730907940864,3.77793,2647.0,2646.6,0.7647]
[1730907941060,3.0,2647.5,2646.6,0.7647]
[1730907941061,3.77717,2647.5,2646.6,0.7647]
[1730907941392,3.77717,2647.5,2646.8,0.7916]
[1730907941563,3.77691,2647.7,2646.9,1.37271884]
[1730907941751,3.77687,2647.7,2647.0,0.7916]
[1730907941955,3.7771,2647.6,2647.0,0.7916]
[1730907942265,3.77751,2647.3,2647.0,0.7916]
[1730907942674,3.77758,2647.2,2647.0,0.7916]
[1730907942871,3.77751,2647.3,2647.0,0.7916]
[1730907943179,3.77722,2647.5,2647.0,0.7916]
[1730907943381,7.55445,2647.5,2647.0,2.08876]
[1730907943582,3.77722,2647.5,2647.0,2.08876]
[1730907943785,3.77709,2647.6,2647.0,2.08876]
[1730907944151,3.77715,2647.5,2647.0,2.08876]
[1730907944495,3.77715,2647.5,2647.1,1.426876]
[1730907944857,7.5544,2647.5,2647.1,1.426876]
[1730907945198,3.77715,2647.5,2647.1,1.426876]
[1730907945491,3.77678,2647.8,2647.2,0.8111]
[1730907945696,3.77632,2648.1,2647.4,0.8111]
[1730907945904,3.77632,2648.1,2647.5,1.29911]
[1730907946273,7.5522,2648.3,2647.6,0.7961]
[1730907946501,3.77609,2648.3,2647.6,0.7961]
[1730907946717,3.77609,2648.3,2647.7,12.18]
[1730907946887,3.77616,2648.2,2647.7,13.45927645]
[1730907947085,0.7892,2648.8,2647.7,12.18]
[1730907947287,0.7892,2648.8,2647.6,0.7961]
[1730907947288,3.77652,2648.0,2647.6,0.7961]
[1730907947814,3.77674,2647.8,2647.6,0.7961]
[1730907948132,7.55286,2648.0,2647.0,0.8138]
[1730907948297,3.77697,2647.7,2647.0,0.8138]
[1730907948887,3.77724,2647.5,2647.0,0.8138]
[1730907949903,3.77702,2647.6,2647.0,0.8138]
[1730907950095,3.77716,2647.5,2647.0,0.8138]
[1730907950408,10.93043519,2648.2,2647.0,0.8138]
[1730907950409,0.7978,2648.5,2647.1,0.07555557]
[1730907950608,7.38608,2648.3,2647.3,0.7732]
[1730907950786,3.77608,2648.3,2647.5,0.7732]
[1730907950982,3.77616,2648.2,2647.5,0.7732]
[1730907951185,3.77637,2648.1,2647.5,0.7732]
[1730907952007,7.55223,2648.3,2647.5,0.7732]
[1730907952220,3.77572,2648.5,2647.6,0.206852]
[1730907952428,3.77644,2648.0,2647.6,0.206852]
[1730907953124,3.77637,2648.1,2647.6,0.206852]
[1730907953324,7.55279,2648.1,2647.6,0.206852]
[1730907953527,3.77637,2648.1,2647.6,0.206852]
[1730907954510,3.7761,2648.3,2647.6,0.206852]
[1730907954714,3.77564,2648.6,2647.8,0.7585]
[1730907954922,3.77573,2648.5,2647.8,0.7585]
[1730907956025,3.77586,2648.4,2647.8,0.7585]
[1730907956207,3.77587,2648.4,2647.8,0.7585]
[1730907957239,3.77586,2648.4,2647.8,0.7585]
[1730907957445,3.77586,2648.4,2647.9,1.29385]
[1730907958517,3.77616,2648.2,2647.9,1.29385]
[1730907958722,3.77616,2648.2,2647.8,0.7585]
[1730907958919,3.77657,2647.9,2647.8,0.7585]
[1730907959124,3.77614,2648.3,2647.8,0.7585]
[1730907959320,3.77586,2648.4,2647.8,0.7585]
[1730907959927,3.77567,2648.6,2647.8,0.7585]
[1730907960177,3.7754,2648.8,2648.0,0.7847]
[1730907960320,3.77487,2649.1,2648.2,0.7709]
[1730907960520,3.77502,2649.0,2648.2,0.7709]
[1730907961052,3.77538,2648.8,2648.2,0.7709]
[1730907961254,3.7751,2649.0,2648.2,0.7709]
[1730907961474,3.7751,2649.0,2648.4,0.7652]
[1730907961660,3.7751,2649.0,2648.5,12.18]
[1730907962362,3.7739,2649.8,2648.4,0.7652]
[1730907962363,4.39619067,2650.2,2648.7,0.7652]
[1730907962509,3.33,2650.1,2648.9,0.7637]
[1730907962709,3.774,2649.8,2649.1,0.7637]
[1730907963155,3.33,2650.1,2649.3,0.7637]
[1730907963351,3.9015881,2650.2,2649.5,0.8019]
[1730907963715,3.77345,2650.1,2649.5,0.8019]
[1730907963911,0.1282881,2650.2,2649.5,0.8019]
[1730907964113,0.1282881,2650.2,2649.2,0.7899]
[1730907964114,3.77415,2649.6,2649.2,0.7899]
[1730907964321,3.77487,2649.1,2648.5,0.7899]
[1730907964561,3.77502,2649.0,2648.6,12.18]
[1730907964932,7.55011,2649.0,2648.6,12.18]
[1730907965300,3.77502,2649.0,2648.6,12.18]
[1730907965818,0.8145,2649.7,2648.5,0.7899]
[1730907965819,3.77531,2648.8,2648.5,0.7899]
[1730907966019,3.77557,2648.6,2648.3,0.05663766]
[1730907966375,3.77535,2648.8,2648.3,0.05663766]
[1730907966821,3.77518,2648.9,2648.3,0.05663766]
[1730907967117,7.55081,2648.8,2648.2,0.7707]
[1730907967331,3.77539,2648.8,2648.2,0.7707]
[1730907967675,7.55079,2648.8,2648.2,0.7707]
[1730907967990,1.307548,2649.2,2648.2,0.7707]
[1730907968187,3.77572,2648.5,2648.1,0.7547]
[1730907968790,3.77607,2648.3,2648.1,0.7547]
[1730907968997,7.55216,2648.3,2648.1,0.7547]
[1730907969199,3.77607,2648.3,2648.1,0.7547]
[1730907969397,3.77532,2648.8,2647.8,12.9738]
[1730907969633,3.77634,2648.1,2647.8,12.9738]
[1730907969832,3.7761,2648.3,2647.8,12.9738]
[1730907970123,3.77632,2648.1,2647.8,0.7938]
[1730907970281,0.7874,2648.3,2647.5,12.9912]
[1730907970486,3.77676,2647.8,2647.6,12.18]
[1730907970686,7.55308,2648.0,2647.6,12.18]
[1730907970906,3.77659,2647.9,2647.6,12.18]
[1730907971432,3.77625,2648.2,2647.6,13.48478609]
[1730907971784,7.55193,2648.4,2647.6,13.48478609]
[1730907971985,3.77595,2648.4,2647.7,0.7723]
[1730907972289,3.77595,2648.4,2647.7,0.84782958]
[1730907972487,7.11063519,2649.1,2647.9,0.763]
[1730907972770,0.7647,2649.2,2648.1,0.763]
[1730907972771,3.77535,2648.8,2648.1,0.763]
[1730907973034,0.7647,2649.2,2648.1,0.763]
[1730907973035,3.77486,2649.1,2648.1,0.763]
[1730907973238,3.77575,2648.5,2648.1,0.763]
[1730907973589,0.8274,2648.8,2647.8,12.9523]
[1730907973789,3.7761,2648.3,2647.8,0.7723]
[1730907973991,3.77639,2648.1,2647.8,0.7723]
[1730907974591,7.55278,2648.1,2647.8,0.7723]
[1730907974905,3.7765,2648.0,2647.8,0.7723]
[1730907975237,3.777,2647.6,2647.0,0.7723]
[1730907975532,3.77686,2647.7,2647.0,0.7723]
[1730907975732,3.77672,2647.8,2647.1,0.07554983]
[1730907976036,3.77674,2647.8,2647.2,0.7584]
[1730907976837,3.77657,2647.9,2647.2,0.7584]
[1730907976992,4.32591,2648.4,2647.2,0.7584]
[1730907976993,3.77685,2647.8,2647.2,0.7584]
[1730907977192,3.77687,2647.7,2647.2,0.7584]
[1730907977425,3.77653,2648.0,2647.2,0.7584]
[1730907977832,3.77665,2647.9,2647.2,0.7584]
[1730907978020,3.77665,2647.9,2647.3,12.18]
[1730907978317,3.77681,2647.8,2647.3,12.18]
[1730907978645,3.77687,2647.7,2647.3,12.18]
[1730907978950,3.77683,2647.8,2647.3,12.18]
[1730907979555,3.77651,2648.0,2647.3,12.18]
[1730907979773,3.77572,2648.5,2647.5,0.7926]
[1730907979904,3.77632,2648.1,2647.6,12.18]
[1730907980577,3.77605,2648.3,2647.6,12.18]
[1730907980740,3.77604,2648.3,2647.7,1.29726]
[1730907981267,3.77626,2648.2,2647.8,0.7796]
[1730907981777,3.77576,2648.5,2647.8,0.7796]
[1730907981945,3.77576,2648.5,2647.7,1.29726]
[1730907981946,3.77559,2648.6,2647.9,12.46321588]
[1730907982146,3.77559,2648.6,2648.0,0.7704]
[1730907982349,3.77551,2648.7,2648.0,0.7704]
[1730907982583,3.77572,2648.5,2648.0,0.7704]
[1730907982886,3.77572,2648.5,2647.9,12.387686]
[1730907982887,3.77643,2648.0,2647.9,12.18]
[1730907983038,3.77709,2647.6,2647.4,0.8068]
[1730907984738,0.7589,2648.0,2646.4,12.18]
[1730907984739,0.7589,2648.0,2646.6,0.8076]
[1730907984947,3.77766,2647.2,2646.7,12.18]
[1730907985287,3.77744,2647.3,2646.8,12.18]
[1730907985438,3.77736,2647.4,2646.8,12.18]
[1730907985636,3.77751,2647.3,2646.8,12.18]
[1730907986284,3.77722,2647.5,2646.8,12.18]
[1730907986437,3.77726,2647.5,2646.8,12.18]
[1730907986636,0.7838,2648.4,2647.0,0.7593]
[1730907986861,4.55979,2648.4,2647.2,3.0]
[1730907987065,7.55197,2648.4,2647.3,0.83483253]
[1730907987287,3.77631,2648.1,2647.3,0.7593]
[1730907987578,7.55105,2648.7,2647.6,0.7527]
[1730907987787,3.77552,2648.7,2647.8,0.7843]
[1730907987954,3.77552,2648.7,2648.0,0.7843]
[1730907988161,3.77574,2648.5,2648.0,0.7843]
[1730907988470,7.55108,2648.7,2648.0,0.7843]
[1730907988783,3.77552,2648.7,2648.0,0.7843]
[1730907989276,3.77565,2648.6,2648.0,0.7843]
[1730907989476,3.77552,2648.7,2648.0,0.7843]
[1730907989889,3.77473,2649.2,2648.2,0.81]
[1730907990092,0.806,2649.6,2648.3,1.19855234]
[1730907990237,3.77453,2649.4,2648.4,0.81]
[1730907990445,3.77407,2649.7,2648.6,0.81]
[1730907990740,3.77407,2649.7,2648.8,0.81]
[1730907990947,3.33,2650.1,2648.8,0.81]
[1730907991268,3.77415,2649.6,2649.0,0.81]
[1730907991436,3.77358,2650.0,2649.0,0.81]
[1730907991661,3.77403,2649.7,2649.0,0.81]
[1730907991875,7.49684681,2650.0,2649.1,0.075492]
[1730907992075,3.77385,2649.9,2649.1,0.07548944]
[1730907992253,3.33,2650.1,2649.2,0.784]
[1730907992471,0.1282881,2650.2,2649.4,0.784]
[1730907993747,3.9016081,2650.2,2649.4,0.784]
[1730907994369,0.1282881,2650.2,2649.6,0.7915]
[1730907994578,0.1282881,2650.2,2649.7,0.86697579]
[1730907994758,0.1282881,2650.2,2649.7,0.7915]
[1730907997364,0.1282881,2650.2,2649.9,0.7695]
[1730907997555,0.1282881,2650.2,2650.1,0.7695]
[1730907998003,0.1282881,2650.2,2649.7,0.7695]
[1730907998004,3.77352,2650.1,2649.7,0.7695]
[1730907998307,3.77381,2649.9,2649.7,0.7695]
[1730907998510,3.77409,2649.7,2649.4,0.7695]
[1730907998954,3.77381,2649.9,2649.4,0.7695]
[1730907999160,3.77431,2649.5,2649.0,0.8321]
[1730907999365,3.77403,2649.7,2649.0,2.13331]
[1730908000074,3.77418,2649.6,2649.0,2.13331]
[1730908000275,7.54816,2649.7,2649.0,2.13331]
[1730908000513,3.77403,2649.7,2649.0,2.13331]
[1730908000810,3.77392,2649.8,2649.0,2.13331]
[1730908000979,3.77416,2649.6,2649.0,0.8321]
[1730908001161,0.44517781,2650.0,2649.0,0.8321]
[1730908001364,0.55,2650.1,2649.0,0.8321]
[1730908001563,0.55,2650.1,2648.5,0.07549753]
[1730908001564,3.9016881,2650.2,2649.1,0.7621]
[1730908001764,7.547,2650.1,2649.1,0.7621]
[1730908001986,3.77344,2650.1,2649.1,0.7621]
[1730908003001,3.77362,2650.0,2649.1,0.7621]
[1730908003166,3.77344,2650.1,2649.1,0.7621]
[1730908003365,0.1282881,2650.2,2649.2,0.07548103]
[1730908003366,3.9016281,2650.2,2649.2,0.07548103]
[1730908003565,3.77347,2650.1,2649.3,0.8081]
[1730908003813,7.54701,2650.1,2649.3,0.8081]
[1730908003995,0.1282881,2650.2,2649.3,0.8081]
[1730908004194,0.1282881,2650.2,2649.5,0.6614]
[1730908004412,3.9016481,2650.2,2649.5,0.6614]
[1730908004727,3.77389,2649.8,2649.5,0.6614]
[1730908005087,3.77358,2650.0,2649.5,0.6614]
[1730908005284,3.9016781,2650.2,2649.5,0.6614]
[1730908005485,4.71368781,2650.1,2649.5,0.6614]
[1730908006166,0.94016781,2650.1,2649.5,0.6614]
[1730908006370,3.7736,2650.0,2649.5,0.6614]
[1730908006697,3.7736,2650.0,2648.5,0.88]
[1730908006698,0.55,2649.7,2648.5,0.87]
[1730908006897,3.77415,2649.6,2648.3,0.01]
[1730908007214,0.42397061,2649.6,2648.4,0.817]
[1730908007397,3.77395,2649.8,2648.6,0.817]
[1730908007583,3.77381,2649.9,2648.8,0.817]
[1730908007771,0.55,2650.0,2648.9,0.88019068]
[1730908007969,4.16370781,2650.1,2648.9,0.88019068]
[1730908008217,0.39016781,2650.1,2648.9,0.8047]
[1730908008382,0.1282881,2650.2,2649.1,0.8047]
[1730908008588,0.1282881,2650.2,2649.2,0.88018299]
[1730908008783,3.77383,2649.9,2649.2,0.8047]
[1730908009519,3.77401,2649.7,2649.2,0.8047]
[1730908010212,0.55,2649.8,2649.2,0.8047]
[1730908010522,0.7994,2650.1,2649.2,0.8047]
[1730908010523,0.432382,2649.7,2649.2,0.8047]
[1730908010723,3.77381,2649.9,2649.2,0.8047]
[1730908011217,3.77353,2650.1,2649.2,0.8047]
[1730908011523,3.77347,2650.1,2649.2,0.8047]
[1730908011816,0.69017581,2650.0,2649.2,0.8047]
[1730908012723,3.77379,2649.9,2649.2,0.8047]
[1730908012919,0.1282881,2650.2,2649.2,0.8047]
[1730908012920,3.55,2650.1,2649.2,0.8047]
[1730908013282,3.77344,2650.1,2649.2,0.8047]
[1730908013621,3.77416,2649.6,2649.2,0.8047]
[1730908013784,3.77416,2649.6,2648.3,0.7612]
[1730908013785,4.75402743,2649.5,2648.3,0.7612]
[1730908013981,5.13144343,2649.5,2648.4,0.7612]
[1730908014200,5.13144343,2649.5,2648.1,0.87]
[1730908014201,3.77445,2649.4,2648.6,0.7612]
[1730908014397,4.75430743,2649.3,2648.6,12.9412]
[1730908014640,3.77483,2649.2,2648.6,12.9412]
[1730908015027,0.97963743,2649.3,2648.6,12.9412]
[1730908015226,3.77452,2649.4,2648.6,12.9412]
[1730908015481,4.1897936,2649.3,2648.6,12.9412]
[1730908015850,3.77488,2649.1,2648.6,12.9412]
[1730908016149,3.77472,2649.2,2648.6,12.9412]